bitfinex/quotes_BTCUSD_20241229
["timestamp","ask_amount","ask_price","bid_price","bid_amount"]
[1735487027244,0.25389949,94867.0,94863.0,0.0825]
[1735487027384,0.25389949,94867.0,94863.0,0.0845]
[1735487027587,0.25389949,94867.0,94863.0,0.0855]
[1735487027788,0.25389949,94867.0,94863.0,0.0835]
[1735487028005,0.25389949,94867.0,94863.0,0.0825]
[1735487028219,0.01653484,94867.0,94863.0,0.0825]
[1735487028425,0.01653484,94867.0,94863.0,0.0845]
[1735487029018,0.28484523,94865.0,94863.0,0.002]
[1735487029222,0.28484523,94865.0,94863.0,0.005]
[1735487029645,0.28484523,94865.0,94863.0,0.003]
[1735487029851,0.01653484,94867.0,94863.0,0.003]
[1735487030062,0.01953484,94867.0,94858.0,0.0825]
[1735487030286,0.004,94865.0,94858.0,0.0825]
[1735487030854,0.006,94865.0,94858.0,0.0825]
[1735487031114,0.002,94865.0,94858.0,0.0825]
[1735487031541,0.28501161,94859.0,94858.0,0.0825]
[1735487033618,0.28601161,94859.0,94858.0,0.0825]
[1735487034216,0.001,94859.0,94858.0,0.0825]
[1735487034615,0.001,94859.0,94854.0,0.0453]
[1735487036653,0.32044228,94862.0,94854.0,0.0453]
[1735487037038,0.001,94859.0,94854.0,0.0453]
[1735487037913,0.01653593,94861.0,94854.0,0.0453]
[1735487038249,0.006,94859.0,94854.0,0.0453]
[1735487038679,0.004,94859.0,94854.0,0.0454708]
[1735487039091,0.006,94859.0,94854.0,0.0454708]
[1735487039726,0.002,94859.0,94854.0,0.0454708]
[1735487040159,0.006,94859.0,94854.0,0.0454708]
[1735487040373,0.002,94859.0,94854.0,0.0454708]
[1735487040910,0.002,94859.0,94855.0,0.08789414]
[1735487040911,0.005,94859.0,94855.0,0.08789414]
[1735487041844,0.005,94859.0,94856.0,0.1]
[1735487042040,0.28504297,94858.0,94857.0,0.0758]
[1735487042212,0.005,94859.0,94857.0,0.0758]
[1735487042437,0.003,94859.0,94858.0,0.09913649]
[1735487042637,0.01653593,94861.0,94857.0,0.0758]
[1735487042886,0.01653593,94861.0,94856.0,0.1]
[1735487042887,0.01653593,94861.0,94859.0,0.0758]
[1735487043094,0.01653593,94861.0,94859.0,0.0728]
[1735487043699,0.01653593,94861.0,94859.0,0.1728]
[1735487043915,0.28503355,94863.0,94860.0,0.1]
[1735487044122,0.28503355,94863.0,94862.0,0.1]
[1735487044333,0.28503355,94863.0,94862.0,0.1453]
[1735487044793,8.54e-05,94867.0,94862.0,0.1453]
[1735487046122,8.54e-05,94867.0,94863.0,0.0758]
[1735487046529,8.54e-05,94867.0,94863.0,0.0748]
[1735487046942,8.54e-05,94867.0,94863.0,0.11918428]
[1735487047138,8.54e-05,94867.0,94863.0,0.04438428]
[1735487047139,0.01761946,94867.0,94863.0,0.04438428]
[1735487047755,0.01861946,94867.0,94863.0,0.04438428]
[1735487048565,0.01961946,94867.0,94863.0,0.04438428]
[1735487049728,0.01961946,94867.0,94864.0,0.0789]
[1735487050798,0.01761946,94867.0,94864.0,0.0789]
[1735487051189,0.01861946,94867.0,94864.0,0.0789]
[1735487051553,0.01761946,94867.0,94864.0,0.0789]
[1735487052378,0.01861946,94867.0,94864.0,0.0789]
[1735487054005,0.0020854,94867.0,94864.0,0.0789]
[1735487057173,0.0186192,94867.0,94864.0,0.0789]
[1735487057615,0.30364738,94867.0,94864.0,0.0789]
[1735487064001,0.28711358,94867.0,94864.0,0.0789]
[1735487065611,0.0020854,94867.0,94864.0,0.0789]
[1735487066035,0.0020854,94867.0,94864.0,0.18288632]
[1735487066236,0.0020854,94867.0,94866.0,0.2245]
[1735487066715,0.0020854,94867.0,94866.0,0.32848632]
[1735487067063,0.01761725,94867.0,94866.0,0.32848632]
[1735487067290,0.01661725,94867.0,94866.0,0.32848632]
[1735487067714,0.01761725,94867.0,94866.0,0.33448632]
[1735487069404,0.01761725,94867.0,94866.0,0.43448632]
[1735487070224,0.01761725,94867.0,94866.0,0.48223731]
[1735487070429,0.01761725,94867.0,94866.0,0.48523731]
[1735487070626,0.20761339,94867.0,94866.0,0.48523731]
[1735487071681,0.01761725,94867.0,94866.0,0.48523731]
[1735487073096,0.01761725,94867.0,94866.0,0.43748632]
[1735487073899,0.0010854,94867.0,94866.0,0.43748632]
[1735487077285,0.01761769,94867.0,94866.0,0.43748632]
[1735487083867,0.0010854,94867.0,94866.0,0.43748632]
[1735487087113,0.0176175,94867.0,94866.0,0.43748632]
[1735487087630,0.0176175,94867.0,94866.0,0.48125203]
[1735487089919,0.20764774,94867.0,94866.0,0.48125203]
[1735487090342,0.20764774,94867.0,94866.0,0.43748632]
[1735487092983,0.0176175,94867.0,94866.0,0.43748632]
[1735487093827,0.0010854,94867.0,94866.0,0.43748632]
[1735487101183,0.01761719,94867.0,94866.0,0.43748632]
[1735487103901,0.0010854,94867.0,94866.0,0.43748632]
[1735487104110,0.0010854,94867.0,94866.0,0.47077759]
[1735487105730,0.0010854,94867.0,94866.0,0.43748632]
[1735487111266,0.01761789,94867.0,94866.0,0.43748632]
[1735487111767,0.16646017,94872.0,94869.0,0.1]
[1735487112007,0.16646017,94872.0,94870.0,0.10398632]
[1735487112153,0.0165324,94872.0,94870.0,0.10398632]
[1735487112360,0.0165324,94872.0,94871.0,0.04349863]
[1735487112557,0.0165324,94872.0,94871.0,0.10398632]
[1735487113905,0.28506238,94895.0,94871.0,0.10398632]
[1735487114076,0.00019737,94892.0,94873.0,0.0756]
[1735487114282,0.00019737,94892.0,94874.0,0.10398632]
[1735487116347,0.00519737,94892.0,94874.0,0.10398632]
[1735487116672,0.00719737,94892.0,94874.0,0.10398632]
[1735487117052,0.00519737,94892.0,94882.0,0.1]
[1735487117242,0.01653186,94888.0,94882.0,0.1]
[1735487118332,0.008,94887.0,94882.0,0.1]
[1735487120846,0.011,94887.0,94882.0,0.1]
[1735487120974,0.003,94887.0,94882.0,0.1]
[1735487121196,0.005,94887.0,94882.0,0.1]
[1735487122431,0.28506238,94883.0,94882.0,0.1]
[1735487122983,0.005,94887.0,94882.0,0.1]
[1735487123388,0.01653186,94888.0,94882.0,0.1]
[1735487123767,0.002,94883.0,94882.0,0.1]
[1735487123975,0.001,94883.0,94882.0,0.1]
[1735487124230,0.01653186,94888.0,94882.0,0.1]
[1735487124597,0.003,94887.0,94882.0,0.1]
[1735487125510,0.003,94887.0,94883.0,0.01]
[1735487125812,0.01653186,94888.0,94883.0,0.01]
[1735487126267,0.002,94887.0,94883.0,0.009]
[1735487126815,0.003,94887.0,94883.0,0.009]
[1735487126955,0.01853186,94888.0,94883.0,0.009]
[1735487127154,0.01853186,94888.0,94884.0,0.0185]
[1735487127355,0.02253186,94888.0,94884.0,0.0185]
[1735487127557,0.02053186,94888.0,94884.0,0.0185]
[1735487127921,0.002,94887.0,94884.0,0.0185]
[1735487128351,0.002,94887.0,94882.0,0.176]
[1735487128885,0.002,94887.0,94882.0,0.1]
[1735487129102,0.005,94887.0,94882.0,0.1]
[1735487129316,0.002,94887.0,94882.0,0.1]
[1735487129708,0.28534562,94884.0,94882.0,0.1]
[1735487131080,0.28634562,94884.0,94882.0,0.1]
[1735487132205,0.28834562,94884.0,94882.0,0.1]
[1735487133797,0.28834562,94884.0,94874.0,0.10398632]
[1735487133798,0.28834562,94884.0,94883.0,0.2259]
[1735487135215,0.28634562,94884.0,94883.0,0.2259]
[1735487135410,0.28534562,94884.0,94883.0,0.2259]
[1735487135611,0.28734562,94884.0,94883.0,0.2259]
[1735487135819,0.28834562,94884.0,94883.0,0.2259]
[1735487136845,0.003,94884.0,94883.0,0.2259]
[1735487137714,0.003,94884.0,94875.0,0.0754]
[1735487137901,0.003,94884.0,94882.0,0.0001708]
[1735487138048,0.141114,94883.0,94882.0,0.0001708]
[1735487139200,0.146114,94883.0,94882.0,0.0001708]
[1735487139642,0.141114,94883.0,94882.0,0.0001708]
[1735487139847,0.146114,94883.0,94882.0,0.0001708]
[1735487140337,0.150114,94883.0,94882.0,0.0001708]
[1735487140492,0.155114,94883.0,94882.0,0.0001708]
[1735487141741,0.151114,94883.0,94882.0,0.0001708]
[1735487141918,0.141114,94883.0,94882.0,0.0001708]
[1735487142088,0.143114,94883.0,94882.0,0.0001708]
[1735487142291,0.151114,94883.0,94882.0,0.0011708]
[1735487142523,0.151114,94883.0,94882.0,0.0001708]
[1735487142524,0.24710032,94883.0,94882.0,0.0001708]
[1735487142728,0.25510032,94883.0,94882.0,0.0001708]
[1735487142950,0.26010032,94883.0,94882.0,0.0001708]
[1735487143121,0.25210032,94883.0,94872.0,0.0001708]
[1735487143321,0.10398632,94878.0,94850.0,0.0001706]
[1735487143526,3.096749,94877.0,94850.0,0.0001706]
[1735487143753,0.10398632,94876.0,94850.0,0.0001706]
[1735487143971,2.752324,94875.0,94850.0,0.0001706]
[1735487144175,0.0078,94873.0,94850.0,0.0001706]
[1735487144375,2.70738432,94872.0,94850.0,0.0001706]
[1735487144543,0.10398632,94872.0,94850.0,0.0001706]
[1735487144742,2.293146,94871.0,94850.0,0.0001706]
[1735487144942,0.10398632,94870.0,94850.0,0.0001706]
[1735487145208,2.286854,94869.0,94850.0,0.0001706]
[1735487145335,0.10398632,94868.0,94850.0,0.0001706]
[1735487145537,2.324891,94867.0,94850.0,0.0001706]
[1735487145721,1.92769732,94866.0,94850.0,0.0001706]
[1735487145920,1.860567,94865.0,94850.0,0.0001706]
[1735487146172,0.10398632,94864.0,94850.0,0.0001706]
[1735487146348,1.42883132,94864.0,94850.0,0.0001706]
[1735487146547,1.230656,94863.0,94850.0,0.0001706]
[1735487146747,0.10398632,94862.0,94850.0,0.0001706]
[1735487146950,1.13752832,94862.0,94850.0,0.0001706]
[1735487147282,0.763057,94861.0,94850.0,0.0001706]
[1735487147490,0.84821332,94860.0,94850.0,0.0001706]
[1735487147692,1.008457,94859.0,94854.0,0.00067696]
[1735487147914,1.11244332,94859.0,94854.0,0.00067696]
[1735487148048,0.0128,94867.0,94854.0,0.00067696]
[1735487148049,1.40442671,94858.0,94854.0,0.00067696]
[1735487148251,0.996359,94857.0,94854.0,0.00067696]
[1735487148486,0.0078,94855.0,94854.0,0.00067696]
[1735487148698,1.89755732,94855.0,94854.0,0.00067696]
[1735487148936,1.14943032,94855.0,94854.0,0.00067696]
[1735487149606,0.91336032,94855.0,94854.0,0.00067696]
[1735487149834,0.87282132,94855.0,94854.0,0.00067696]
[1735487150042,0.77983332,94855.0,94854.0,0.00067696]
[1735487152970,0.77983332,94855.0,94837.0,0.0001708]
[1735487153168,1.62923632,94854.0,94838.0,5.056e-05]
[1735487153395,1.507195,94853.0,94838.0,5.056e-05]
[1735487153646,0.10398632,94852.0,94838.0,5.056e-05]
[1735487153866,0.28417402,94847.0,94838.0,5.056e-05]
[1735487154100,0.0078,94845.0,94838.0,5.056e-05]
[1735487154324,2.57249832,94844.0,94838.0,5.056e-05]
[1735487154543,2.225612,94843.0,94838.0,5.056e-05]
[1735487154793,0.10398632,94842.0,94838.0,5.056e-05]
[1735487154995,2.160999,94841.0,94838.0,5.056e-05]
[1735487155224,0.38816034,94840.0,94838.0,5.056e-05]
[1735487155443,2.244807,94839.0,94838.0,5.056e-05]
[1735487155691,0.10398632,94839.0,94838.0,5.056e-05]
[1735487155913,1.95937634,94839.0,94838.0,5.056e-05]
[1735487156166,1.88236234,94839.0,94838.0,5.056e-05]
[1735487156868,1.60718832,94839.0,94838.0,5.056e-05]
[1735487157083,1.61118832,94839.0,94838.0,5.056e-05]
[1735487157987,1.53858532,94839.0,94838.0,5.056e-05]
[1735487158999,1.53858532,94839.0,94818.0,0.0787]
[1735487159328,1.58352032,94838.0,94818.0,0.07875064]
[1735487159462,1.361508,94837.0,94818.0,0.07875064]
[1735487159667,0.10398632,94836.0,94818.0,0.07875064]
[1735487159862,1.303629,94835.0,94818.0,0.07875064]
[1735487160111,0.10398632,94834.0,94818.0,0.07875064]
[1735487160314,0.871172,94833.0,94818.0,0.07875064]
[1735487160510,0.10398632,94832.0,94818.0,0.07875064]
[1735487160671,1.000003,94831.0,94818.0,0.07875064]
[1735487160870,0.10398632,94830.0,94818.0,0.07875064]
[1735487161237,1.344413,94829.0,94818.0,0.07875064]
[1735487161425,0.10398632,94828.0,94818.0,0.07875064]
[1735487161732,0.78881,94827.0,94818.0,0.07875064]
[1735487161858,0.89279632,94827.0,94818.0,0.07875064]
[1735487162063,0.762946,94826.0,94818.0,0.07875064]
[1735487162303,0.562947,94826.0,94818.0,0.07875064]
[1735487162483,0.345821,94825.0,94818.0,0.07875064]
[1735487162693,0.345821,94826.0,94818.0,0.07875064]
[1735487163490,0.348821,94826.0,94818.0,0.07892144]
[1735487163703,0.34502,94825.0,94818.0,0.07892144]
[1735487163915,0.323848,94825.0,94818.0,0.07892144]
[1735487164123,0.34502,94825.0,94818.0,0.07892144]
[1735487165441,0.34502,94825.0,94818.0,0.06295744]
[1735487165645,0.427657,94826.0,94818.0,0.05497544]
[1735487165760,0.003,94825.0,94818.0,0.05497544]
[1735487165967,0.405354,94824.0,94818.0,0.05497544]
[1735487166373,0.01881939,94845.0,94818.0,0.05497544]
[1735487166573,0.002,94825.0,94818.0,0.05497544]
[1735487167148,0.003,94826.0,94818.0,0.05497544]
[1735487167364,0.10398632,94844.0,94818.0,0.05497544]
[1735487167515,0.001,94824.0,94818.0,0.05497544]
[1735487167919,0.10398632,94844.0,94818.0,0.05497544]
[1735487168127,1.311196,94843.0,94818.0,0.05497544]
[1735487168347,0.002,94826.0,94818.0,0.05497544]
[1735487168772,0.002,94824.0,94818.0,0.05497544]
[1735487169102,0.002,94826.0,94818.0,0.05497544]
[1735487169718,0.10398632,94842.0,94818.0,0.05497544]
[1735487169863,1.167099,94841.0,94818.0,0.05497544]
[1735487170075,0.002,94824.0,94818.0,0.05497544]
[1735487170273,0.10398632,94840.0,94818.0,0.05497544]
[1735487170455,1.282444,94839.0,94818.0,0.05497544]
[1735487170672,0.003,94826.0,94818.0,0.05497544]
[1735487170925,0.260185,94825.0,94818.0,0.05497544]
[1735487171320,0.175184,94825.0,94818.0,0.05497544]
[1735487171524,0.003,94826.0,94818.0,0.05497544]
[1735487171727,0.203286,94825.0,94818.0,0.05497544]
[1735487172200,0.10398632,94838.0,94818.0,0.05497544]
[1735487172201,0.662967,94837.0,94818.0,0.05497544]
[1735487172403,0.002,94824.0,94818.0,0.05497544]
[1735487172625,0.194252,94823.0,94818.0,0.05497544]
[1735487173354,0.003,94825.0,94818.0,0.05497544]
[1735487173662,0.213254,94824.0,94818.0,0.05497544]
[1735487173891,0.002,94823.0,94818.0,0.04997544]
[1735487174438,0.003,94823.0,94818.0,0.04997544]
[1735487175450,0.001,94823.0,94818.0,0.04997544]
[1735487176463,0.003,94823.0,94818.0,0.04997544]
[1735487178764,0.003,94823.0,94822.0,0.2244]
[1735487178965,0.003,94823.0,94822.0,0.1244]
[1735487179528,0.002,94823.0,94822.0,0.1244]
[1735487179736,8.54e-05,94835.0,94822.0,0.1244]
[1735487179934,0.454029,94834.0,94822.0,0.1244]
[1735487180389,0.10398632,94833.0,94822.0,0.1244]
[1735487180518,2.00006,94832.0,94822.0,0.1244]
[1735487180702,2.07225932,94831.0,94822.0,0.1244]
[1735487180906,0.001,94823.0,94822.0,0.1244]
[1735487181315,0.10398632,94831.0,94822.0,0.1244]
[1735487181523,0.956333,94830.0,94822.0,0.1244]
[1735487181762,0.10398632,94829.0,94822.0,0.1244]
[1735487182014,0.52707732,94829.0,94822.0,0.1244]
[1735487182153,0.001,94823.0,94822.0,0.1244]
[1735487182560,0.10398632,94829.0,94822.0,0.1244]
[1735487182751,0.529748,94828.0,94822.0,0.1244]
[1735487182966,0.10398632,94827.0,94822.0,0.1244]
[1735487183176,0.265389,94826.0,94822.0,0.1244]
[1735487183381,0.002,94823.0,94822.0,0.1244]
[1735487184814,0.002,94826.0,94822.0,0.1244]
[1735487185112,0.288559,94825.0,94822.0,0.1244]
[1735487185273,0.002,94826.0,94822.0,0.1244]
[1735487185519,0.002,94823.0,94822.0,0.1244]
[1735487186039,0.14167236,94826.0,94822.0,0.1244]
[1735487186247,0.001,94823.0,94822.0,0.1244]
[1735487186946,0.14167236,94824.0,94822.0,0.1244]
[1735487187612,0.19063428,94826.0,94822.0,0.1244]
[1735487187613,0.18863428,94825.0,94822.0,0.1244]
[1735487187805,0.002,94823.0,94822.0,0.1244]
[1735487188249,8.54e-05,94823.0,94822.0,0.1244]
[1735487188801,0.18871968,94823.0,94822.0,0.1244]
[1735487189210,0.19071968,94823.0,94822.0,0.1244]
[1735487189433,0.19071968,94823.0,94822.0,0.2244]
[1735487189802,0.0020854,94823.0,94822.0,0.2244]
[1735487190208,0.0030854,94823.0,94822.0,0.2244]
[1735487190902,0.0020854,94823.0,94822.0,0.2244]
[1735487191546,8.54e-05,94823.0,94822.0,0.2244]
[1735487193835,0.23748672,94823.0,94822.0,0.2244]
[1735487194981,8.54e-05,94823.0,94822.0,0.2244]
[1735487195341,8.54e-05,94823.0,94822.0,0.32838632]
[1735487197231,8.54e-05,94823.0,94822.0,0.42838632]
[1735487198502,0.23865804,94823.0,94822.0,0.42838632]
[1735487198705,8.54e-05,94823.0,94822.0,0.42838632]
[1735487198911,8.54e-05,94823.0,94822.0,0.32838632]
[1735487199077,0.0010854,94823.0,94822.0,0.42838632]
[1735487199325,8.54e-05,94823.0,94822.0,0.42838632]
[1735487199718,0.0010854,94823.0,94822.0,0.42938632]
[1735487200122,0.0010854,94823.0,94822.0,0.42838632]
[1735487200658,0.0010854,94823.0,94822.0,0.43038632]
[1735487200878,0.0010854,94823.0,94822.0,0.3264]
[1735487202018,0.22256192,94887.0,94832.0,0.1]
[1735487202225,0.32068543,94835.0,94834.0,0.0832]
[1735487202607,0.28499632,94839.0,94834.0,0.0832]
[1735487203482,0.10398632,94871.0,94834.0,0.0832]
[1735487203483,0.28499632,94840.0,94834.0,0.0832]
[1735487204342,0.28499632,94840.0,94834.0,0.0842]
[1735487204631,0.28499632,94841.0,94834.0,0.0842]
[1735487204842,0.28499632,94841.0,94834.0,0.0852]
[1735487205049,0.28499632,94841.0,94834.0,0.0842]
[1735487205188,0.28499632,94841.0,94834.0,0.0832]
[1735487205387,0.28499632,94841.0,94834.0,0.0852]
[1735487205837,0.28499632,94841.0,94834.0,0.0832]
[1735487206079,0.28499632,94841.0,94834.0,0.0852]
[1735487207011,0.28499632,94842.0,94834.0,0.0852]
[1735487208012,0.28499632,94842.0,94834.0,0.0832]
[1735487209806,0.10398632,94871.0,94834.0,0.0832]
[1735487210065,2.38117,94870.0,94836.0,0.0832]
[1735487210207,0.10398632,94869.0,94836.0,0.0832]
[1735487210442,2.558158,94868.0,94836.0,0.0832]
[1735487210652,0.10398632,94867.0,94836.0,0.0832]
[1735487210850,1.829448,94866.0,94836.0,0.0832]
[1735487211056,0.10398632,94865.0,94836.0,0.0832]
[1735487211258,1.651658,94864.0,94836.0,0.0832]
[1735487211505,0.10398632,94863.0,94836.0,0.0832]
[1735487211891,1.381851,94862.0,94836.0,0.0832]
[1735487212096,0.10398632,94861.0,94836.0,0.0832]
[1735487212371,1.423114,94860.0,94836.0,0.0842]
[1735487212530,0.10398632,94859.0,94836.0,0.0852]
[1735487212733,1.363209,94858.0,94836.0,0.0842]
[1735487212894,0.10398632,94857.0,94836.0,0.0852]
[1735487213106,1.110231,94856.0,94836.0,0.0842]
[1735487213313,0.10398632,94855.0,94836.0,0.0842]
[1735487213519,0.765792,94854.0,94836.0,0.0842]
[1735487213749,0.10398632,94853.0,94836.0,0.0842]
[1735487213966,0.650581,94852.0,94836.0,0.0842]
[1735487214157,0.64232432,94852.0,94836.0,0.0832]
[1735487214413,0.438955,94851.0,94836.0,0.0832]
[1735487214595,0.438955,94851.0,94836.0,0.0842]
[1735487214789,0.438955,94851.0,94836.0,0.0832]
[1735487214991,0.23383,94850.0,94836.0,0.0832]
[1735487215242,0.278514,94851.0,94836.0,0.0832]
[1735487215831,0.281514,94851.0,94836.0,0.0832]
[1735487216056,0.283514,94851.0,94836.0,0.0832]
[1735487216267,0.105237,94850.0,94836.0,0.0832]
[1735487216499,0.005,94851.0,94836.0,0.0832]
[1735487217485,0.002,94851.0,94836.0,0.0832]
[1735487217695,0.002,94850.0,94836.0,0.0832]
[1735487218793,0.002,94850.0,94837.0,0.0495]
[1735487219097,0.004,94850.0,94846.0,0.1]
[1735487219319,0.004,94850.0,94849.0,0.2272]
[1735487219782,0.002,94850.0,94849.0,0.2272]
[1735487220228,0.004,94850.0,94849.0,0.2272]
[1735487220451,0.004,94850.0,94849.0,0.1272]
[1735487220644,0.002,94850.0,94849.0,0.1272]
[1735487221320,0.00550327,94886.0,94849.0,0.1272]
[1735487221491,0.10398632,94879.0,94849.0,0.1272]
[1735487221858,1.98888,94878.0,94849.0,0.1272]
[1735487222097,0.10398632,94877.0,94849.0,0.1272]
[1735487222286,0.002,94850.0,94849.0,0.1272]
[1735487222882,0.002,94850.0,94849.0,0.1282]
[1735487223264,0.002,94850.0,94849.0,0.1272]
[1735487223629,0.10398632,94877.0,94849.0,0.1272]
[1735487223930,0.10449279,94877.0,94849.0,0.1282]
[1735487224139,2.341832,94876.0,94849.0,0.1272]
[1735487224333,0.10398632,94875.0,94849.0,0.1272]
[1735487224476,0.002,94850.0,94849.0,0.1272]
[1735487224703,0.10398632,94875.0,94849.0,0.1272]
[1735487224903,2.740053,94874.0,94849.0,0.1272]
[1735487225098,0.10398632,94864.0,94849.0,0.001]
[1735487225315,0.0108,94858.0,94828.0,0.03867506]
[1735487225561,3.43148232,94857.0,94828.0,0.03867506]
[1735487225765,0.002,94850.0,94828.0,0.03867506]
[1735487226070,2.26559732,94849.0,94828.0,0.03867506]
[1735487226306,3.031713,94848.0,94828.0,0.03867506]
[1735487226431,2.42432832,94847.0,94828.0,0.03867506]
[1735487226643,2.264755,94846.0,94828.0,0.03967506]
[1735487226838,1.21051132,94845.0,94828.0,0.03967506]
[1735487227048,0.679473,94844.0,94828.0,0.03867506]
[1735487227241,0.10398632,94843.0,94828.0,0.03867506]
[1735487227545,0.45539632,94843.0,94828.0,0.03967506]
[1735487227769,0.426859,94842.0,94828.0,0.03967506]
[1735487227971,0.10398632,94841.0,94828.0,0.03967506]
[1735487228198,0.40689432,94841.0,94829.0,0.0831]
[1735487228425,0.30143,94840.0,94829.0,0.0831]
[1735487228591,0.40541632,94840.0,94829.0,0.0831]
[1735487228792,0.527779,94839.0,94829.0,0.0831]
[1735487229362,0.50503,94839.0,94829.0,0.0831]
[1735487229716,0.62351732,94839.0,94829.0,0.0831]
[1735487230092,0.576187,94838.0,94829.0,0.0831]
[1735487230294,0.10398632,94837.0,94829.0,0.0831]
[1735487230497,1.01385032,94837.0,94829.0,0.0831]
[1735487230677,0.977365,94836.0,94829.0,0.0831]
[1735487230879,0.82735132,94835.0,94829.0,0.0831]
[1735487231080,0.690749,94834.0,94829.0,0.0831]
[1735487231318,0.10398632,94833.0,94829.0,0.0831]
[1735487231536,0.27331132,94833.0,94829.0,0.0831]
[1735487231760,0.158288,94832.0,94829.0,0.0831]
[1735487231922,0.26227432,94832.0,94829.0,0.0831]
[1735487232142,0.534059,94831.0,94829.0,0.0831]
[1735487232342,0.204826,94831.0,94829.0,0.0831]
[1735487232546,0.008,94837.0,94829.0,0.0831]
[1735487232782,0.10398632,94837.0,94829.0,0.0831]
[1735487233047,0.006,94832.0,94829.0,0.0831]
[1735487233391,0.179111,94831.0,94829.0,0.0831]
[1735487233568,0.006,94831.0,94829.0,0.0831]
[1735487235430,0.49385132,94830.0,94818.0,0.0477708]
[1735487235556,0.10398632,94830.0,94829.0,0.0001708]
[1735487236353,0.78576332,94830.0,94829.0,0.0001708]
[1735487236524,0.71002332,94830.0,94829.0,0.0001708]
[1735487236725,0.49662532,94830.0,94829.0,0.0001708]
[1735487236932,0.44763832,94830.0,94829.0,0.0001708]
[1735487237087,0.45263832,94830.0,94829.0,8.354e-05]
[1735487238214,0.24382332,94830.0,94829.0,8.354e-05]
[1735487238368,0.11098632,94830.0,94829.0,0.07728354]
[1735487238778,0.10598632,94830.0,94829.0,0.07728354]
[1735487238995,0.11098632,94830.0,94829.0,0.07728354]
[1735487239171,0.007,94830.0,94829.0,0.07728354]
[1735487239803,0.007,94830.0,94829.0,0.12488354]
[1735487239975,0.007,94830.0,94829.0,0.24737189]
[1735487240200,0.007,94830.0,94829.0,0.22488354]
[1735487240864,0.007,94830.0,94829.0,0.32488354]
[1735487241784,0.002,94830.0,94829.0,0.32488354]
[1735487241986,0.00550903,94881.0,94849.0,0.1248]
[1735487242228,1.73324932,94880.0,94850.0,0.0732]
[1735487242415,1.796179,94879.0,94850.0,0.0712]
[1735487242637,0.10398632,94878.0,94850.0,0.0712]
[1735487242824,1.878615,94877.0,94850.0,0.0702]
[1735487243035,0.10398632,94876.0,94850.0,0.0702]
[1735487243184,1.296611,94875.0,94850.0,0.0702]
[1735487243388,0.10398632,94874.0,94850.0,0.0702]
[1735487243615,0.586177,94873.0,94850.0,0.0702]
[1735487243813,0.10398632,94872.0,94850.0,0.0702]
[1735487244207,0.801842,94871.0,94850.0,0.0702]
[1735487244383,0.10398632,94870.0,94850.0,0.0702]
[1735487244524,0.770581,94869.0,94850.0,0.0702]
[1735487244745,0.10398632,94868.0,94850.0,0.0702]
[1735487244923,0.769551,94867.0,94850.0,0.0712]
[1735487245181,0.10398632,94866.0,94850.0,0.0712]
[1735487245361,0.10398632,94866.0,94850.0,0.0702]
[1735487245556,0.10398632,94866.0,94850.0,0.0712]
[1735487245772,0.404305,94865.0,94850.0,0.0712]
[1735487245927,0.50829132,94865.0,94850.0,0.0702]
[1735487246128,1.673262,94864.0,94850.0,0.0712]
[1735487246793,0.965004,94863.0,94850.0,0.0712]
[1735487246989,0.700962,94862.0,94850.0,0.0712]
[1735487247220,0.10398632,94865.0,94850.0,0.0702]
[1735487247435,0.281937,94864.0,94850.0,0.0702]
[1735487247742,0.284937,94864.0,94850.0,0.0702]
[1735487247917,0.282537,94863.0,94850.0,0.0702]
[1735487248158,0.692275,94863.0,94850.0,0.0702]
[1735487248659,0.692275,94863.0,94850.0,0.0712]
[1735487249036,0.692275,94863.0,94850.0,0.0702]
[1735487249241,0.698275,94863.0,94850.0,0.0712]
[1735487249444,0.895584,94862.0,94850.0,0.0712]
[1735487249643,0.862421,94862.0,94850.0,0.0712]
[1735487249842,0.882543,94862.0,94850.0,0.0712]
[1735487250146,0.784761,94862.0,94850.0,0.0712]
[1735487250456,0.784888,94862.0,94850.0,0.0712]
[1735487250650,0.784888,94862.0,94850.0,0.0702]
[1735487250878,1.115206,94864.0,94850.0,0.0702]
[1735487251096,1.21919232,94864.0,94850.0,0.0702]
[1735487251272,0.848115,94863.0,94850.0,0.0702]
[1735487251430,0.540821,94862.0,94850.0,0.0702]
[1735487251628,0.003,94862.0,94850.0,0.0702]
[1735487251831,0.398348,94861.0,94850.0,0.0702]
[1735487252034,0.37722,94861.0,94850.0,0.0702]
[1735487252275,0.006,94862.0,94850.0,0.0702]
[1735487252474,0.40417,94861.0,94850.0,0.0702]
[1735487252792,0.006,94862.0,94850.0,0.00961827]
[1735487252997,0.0198462,94895.0,94849.0,0.1476]
[1735487253143,0.005,94861.0,94849.0,0.1476]
[1735487254044,0.003,94863.0,94849.0,0.1476]
[1735487254707,0.10398632,94872.0,94849.0,0.1476]
[1735487254922,0.648841,94871.0,94849.0,0.1476]
[1735487255139,0.002,94861.0,94854.0,0.1458]
[1735487255343,0.002,94861.0,94859.0,0.1]
[1735487255524,0.005,94861.0,94859.0,0.1]
[1735487255672,0.079,94891.0,94859.0,0.1]
[1735487255880,0.005,94872.0,94860.0,0.082]
[1735487256083,0.009,94871.0,94860.0,0.082]
[1735487256288,0.009,94871.0,94861.0,0.1458]
[1735487256571,0.005,94872.0,94862.0,0.082]
[1735487256793,0.005,94872.0,94862.0,0.077]
[1735487257005,0.005,94872.0,94864.0,0.1]
[1735487257207,8.53e-05,94892.0,94864.0,0.1]
[1735487257406,0.009,94871.0,94864.0,0.098]
[1735487258530,8.53e-05,94892.0,94864.0,0.098]
[1735487258954,0.004,94872.0,94864.0,0.098]
[1735487259808,0.0020854,94873.0,94865.0,0.0823]
[1735487260204,0.004,94871.0,94865.0,0.0823]
[1735487260407,0.51419283,94871.0,94865.0,0.0823]
[1735487261241,0.51527823,94871.0,94865.0,0.0823]
[1735487261400,0.0010854,94871.0,94865.0,0.0823]
[1735487262425,0.182301,94870.0,94865.0,0.0823]
[1735487262629,0.28548839,94871.0,94865.0,0.0823]